Cogmind - Beta 16.1 @@@ ROGUE MODE // 2026.04.13 @ 16:48:35 Player: Krysmphoenix Result: Destroyed by S-10 Pest with Light Assault Rifle Performance ------------- Evolutions (0) 0 Regions Visited (1) 200 Robots Destroyed (7) 35 Value Destroyed (139) 139 Prototype IDs (0) 0 Alien Tech Used (0) 0 Bonus (0) 0 TOTAL SCORE: 374 Bonus ------- None Cogmind --------- Core Integrity 0/250 Matter 192/300 Energy 100/100 System Corruption 0% Temperature Cool (0) Movement Core (50) Location -10/Materials Parts ------- > --- POWER (1) -------- (None) > --- PROPULSION (2) --- (None) > --- UTILITY (2) ------ Targeting Computer > --- WEAPON (2) ------- Light Assault Rifle > --- INVENTORY (5) ---- Light Ion Engine Assault Rifle Light Assault Rifle Peak State ------------ > --- POWER ------------ Light Ion Engine > --- PROPULSION ------- Flight Unit Flight Unit > --- UTILITY ---------- Improved Terrain Scanner Targeting Computer > --- WEAPON ----------- Medium Laser Light Assault Rifle > --- INVENTORY -------- Light Assault Rifle [Rating: 9] Favorites ----------- Power Light Ion Engine Engine Light Ion Engine Propulsion Flight Unit Wheel Wheel Flight Unit Flight Unit Utility Targeting Computer Device Improved Terrain Scanner Processor Targeting Computer Weapon Light Assault Rifle Energy Gun Medium Laser Ballistic Gun Light Assault Rifle Special Melee Weapon Datajack Build | -11 -10 ------- Run | Yrd Mat Slots Evolved . | . . Power . | . . Propulsion . | . . Utility . | . . Weapon . | . . Parts Attached 14 | 5 9 Power 2 | 1 1 Engine 2 | 1 1 Core . | . . Reactor . | . . Propulsion 4 | 2 2 Treads . | . . Leg . | . . Wheel 2 | 2 . Hover . | . . Flight 2 | . 2 Utility 3 | 1 2 Device 2 | 1 1 Storage . | . . Processor 1 | . 1 Hackware . | . . Protection . | . . Artifact . | . . Weapon 5 | 1 4 Energy Gun 1 | 1 . Energy Cannon . | . . Ballistic Gun 3 | . 3 Ballistic Cannon . | . . Launcher . | . . Special Weapon . | . . Impact Weapon . | . . Slashing Weapon . | . . Piercing Weapon . | . . Special Melee Weapon 1 | . 1 Unidentified Prototypes . | . . Parts Lost 5 | . 5 Power 1 | . 1 Propulsion 2 | . 2 Utility 1 | . 1 Weapon 1 | . 1 Highest Loss Streak 4 | . 4 To Critical Strikes . | . . Average Backups 1 | 1 1 Power . | . . Propulsion . | . . Utility . | . . Weapon . | . . Tool/Special . | . . Unused Backups 3 | 2 1 Power 1 | . 1 Propulsion . | . . Utility . | . . Weapon 2 | 2 . Tool/Special . | . . Average Slot Usage (%) 83 | . 83 Engine 11 | . 11 Wheel 9 | . 9 Flight 13 | . 13 Device 14 | . 14 Processor 13 | . 13 Energy Gun 5 | . 5 Ballistic Gun 12 | . 12 Special Melee Weapon 4 | . 4 Peak Build Rating 9 | 7 9 Average Rating 6 | 3 6 On Entrance 3 | . 7 Avg Prop Armor Cover (%) . | . . Naked Turns . | . . Heaviest Build 8 | 8 8 Greatest Support 20 | 20 20 Greatest Overweight (x) . | . . Average Overweight (x) . | . . Largest Inventory Capacity 5 | 5 5 Average Capacity 5 | 5 5 Most Carried 5 | 5 3 Average Carried 1 | . 1 Final Capacity 5 | 5 5 Final Carried 3 | . 3 Class Distribution -------------------- 60% | Mutant 39% | Scavenger-Mutant Dominant Class ---------------- Mutant | -10/Materials Resources | -11 -10 ----------- Run | Yrd Mat Matter Collected 265 | 210 55 Remotely . | . . Salvage Created 192 | 20 172 Parts 16 | 5 11 Haulers Intercepted . | . . Recyclers Shooed 1 | 1 . Parts Field Recycled . | . . Retrieved Matter . | . . Parts Self-Destructed . | . . Prevented . | . . Parts Restored . | . . Kills | -11 -10 ------- Run | Yrd Mat Combat Hostiles Destroyed 6 | . 6 Guns 6 | . 6 Classes Destroyed 3 | 1 2 Tunneler 1 | 1 . Swarmer 3 | . 3 Grunt 3 | . 3 Best Kill Streak 3 | 1 3 Combat Bots Only 3 | . 3 Max Kills in Single Turn 1 | 1 1 Gunslinging . | . . Exploded . | . . Melee . | . . Uniques/NPCs Destroyed . | . . Combat | -11 -10 -------- Run | Yrd Mat Hostile Shots Fired 82 | . 82 Missed 29 | . 29 Hits 53 | . 53 Projectile 53 | . 53 Damage Taken 542 | . 542 Core 252 | . 252 Absorbed by Shields . | . . Core Remaining (%) 100 | 100 . Volleys Fired 56 | 2 54 Largest 1 | 1 1 Hottest 50 | 50 50 Shots Fired 56 | 2 54 Gun 56 | 2 54 Cannon . | . . Launcher . | . . Special . | . . Kinetic 48 | . 48 Thermal 8 | 2 6 Explosive . | . . Electromagnetic . | . . Robot Hit Streak 11 | 2 11 Robot Miss Streak 3 | . 3 Penetration Max . | . . Secondary Targets . | . . Shots Hit Robots 41 | 2 39 Core Hits 14 | 1 13 Critical Kills . | . . Critical Parts Destroyed . | . . Critical Strikes . | . . Melee Attacks 1 | . 1 Impact . | . . Slashing . | . . Piercing . | . . Sneak Attacks 1 | . 1 Combat Hostiles . | . . Follow-up Attacks . | . . Damage Inflicted 361 | 25 336 Guns 361 | 25 336 Cannons . | . . Explosions . | . . Melee . | . . Ramming . | . . Kinetic 299 | . 299 Thermal 62 | 25 37 Explosive . | . . Electromagnetic . | . . Impact . | . . Slashing . | . . Piercing . | . . Highest Corruption . | . . Average Corruption . | . . Corruption Purged . | . . Corruption Blocked . | . . Overload Shots . | . . Overflow Damage . | . . Projectiles . | . . Explosions . | . . Melee . | . . Knockbacks . | . . Impact . | . . Kinetic . | . . Secondary . | . . Self-Inflicted Damage . | . . Shots . | . . Rammed . | . . Targets Rammed . | . . Kicked . | . . Crushed . | . . Highest Temperature 30 | 20 30 Average Temperature 7 | 12 7 Received Heat Transfer 198 | . 198 Siege Activations . | . . Martial Activations . | . . Shielding Activations . | . . Robots Disrupted . | . . Combat Hostiles . | . . Robots Corrupted . | . . Combat Hostiles . | . . Parts Fried . | . . Impact Corruptions . | . . Robots Melted . | . . Combat Hostiles . | . . Parts Melted 1 | . 1 Heat Transferred 185 | 74 111 Parts Sabotaged . | . . Parts Stolen . | . . Parts Stripped . | . . Power Chain Reactions . | . . Alert | -11 -10 ------- Run | Yrd Mat Maximum Alert Level . | . . Low Security (%) 100 | 100 100 Level 1 . | . . Level 2 . | . . Level 3 . | . . Level 4 . | . . Level 5 . | . . High Security . | . . Max Security . | . . Peak Influence 105 | 5 105 Initial . | . . Average 41 | 2 46 Influence Increases 212 | 5 207 Destroy 0b10 Robot/C 120 | . 120 Destroy 0b10 Robot/NC 5 | 5 . Destroy Leader 10 | . 10 Successful Hack 17 | . 17 Lose Combat Pursuer 60 | . 60 Influence Decreases 178 | 5 173 Time Decay 128 | 5 123 Lost Part 50 | . 50 Squads Dispatched . | . . Investigation . | . . Extermination . | . . Reinforcement . | . . Assault . | . . Garrison . | . . Intercept . | . . Searches Triggered . | . . Construction Impeded . | . . Haulers Reinforced . | . . Active Scanning Responses . | . . Cargo Convoy Interrupts . | . . Stealth | -11 -10 --------- Run | Yrd Mat Distress Signals 1 | . 1 Communications Jammed . | . . Distress Signals . | . . Times Spotted 17 | . 17 Peak Tracking Total 7 | . 7 Tactical Retreats 2 | . 2 Traps | -11 -10 ------- Run | Yrd Mat Traps Triggered . | . . Indirectly . | . . Trap Hack Attempts . | . . Triggered . | . . Disarmed . | . . Reprogrammed . | . . Reused . | . . Traps Extracted . | . . Installed . | . . Triggered . | . . Machines | -11 -10 ---------- Run | Yrd Mat Machines Disabled . | . . Max in Single Turn . | . . Machines Repaired . | . . Machines Dismantled . | . . Machines Sabotaged . | . . Overloaded Fab Kills . | . . Hacking | -11 -10 --------- Run | Yrd Mat Machines Accessed 3 | . 3 Terminals 3 | . 3 Fabricators . | . . Repair Stations . | . . Recycling Units . | . . Scanalyzers . | . . Garrison Access . | . . Total Hacks 8 | . 8 Successful 4 | . 4 Failed 4 | . 4 Catastrophic 1 | . 1 Database Lockouts . | . . Manual 7 | . 7 Terminals 8 | . 8 Fabricators . | . . Repair Stations . | . . Recycling Units . | . . Scanalyzers . | . . Garrison Access . | . . Terminal Hacks 2 | . 2 Branch Access Points 1 | . 1 Zone Layout 1 | . 1 Fabricator Hacks . | . . Repair Station Hacks . | . . Recycling Unit Hacks . | . . Scanalyzer . | . . Garrison Access Hacks . | . . Unauthorized Hacks 2 | . 2 Terminals 2 | . 2 Botnet 2 | . 2 Fabricators . | . . Repair Stations . | . . Recycling Units . | . . Scanalyzers . | . . Garrison Access . | . . Data Cores Recovered . | . . Used . | . . Hacking Detections 3 | . 3 Full Trace Events . | . . Feedback Events . | . . Feedback Blocked . | . . Robot Schematics Acquired . | . . Robots Built . | . . Authchips . | . . Time . | . . Total Robot Build Rating . | . . Part Schematics Acquired . | . . Parts Built . | . . Authchips . | . . Time . | . . Total Part Build Rating . | . . Part Studies Acquired . | . . Parts Repaired . | . . Time . | . . Parts Recycled . | . . Recycled Matter . | . . Retrieved Matter . | . . Retrieved Components . | . . Parts Scanalyzed . | . . Part Schematics Acquired . | . . Parts Damaged . | . . Bothacking | -11 -10 ------------ Run | Yrd Mat Used RIF Installer . | . . Robots Hacked . | . . Non-combat . | . . Combat . | . . Robot Hacks Applied . | . . Relay Couplers Released . | . . Fabnet Peak Effective % . | . . Robots Rewired . | . . Allies Hacked . | . . Hacks Repelled . | . . Allies | -11 -10 -------- Run | Yrd Mat Total Allies . | . . Largest Group . | . . Highest-Rated Group . | . . Highest-Rated Ally . | . . Total Orders . | . . Ally Attacks . | . . Total Damage . | . . Kills . | . . Allies Corrupted . | . . Allies Melted . | . . Intel | -11 -10 ------- Run | Yrd Mat Active Infowar (turns) 281 | 9 272 Terrain 141 | 9 132 Structural 140 | . 140 Robot Analysis Total . | . . Derelict Logs Recovered . | . . Drone Launches . | . . Drone Recoveries . | . . Exploration | -11 -10 ------------- Run | Yrd Mat Turns Passed 314 | 40 274 Spaces Moved 286 | 33 253 Core 14 | 12 2 Treads . | . . Legs . | . . Wheels 85 | 21 64 Hover . | . . Flight 187 | . 187 Fastest Speed 37 | 50 37 Average Speed 50 | 69 47 Slowest Speed 80 | 80 80 Overloaded Moves . | . . Propulsion Burnouts . | . . Robots Hopped 2 | . 2 Potential Cave-ins . | . . Cave-ins Triggered . | . . Exploration Rate (%) 20 | 3 37 Regions Visited 1 Branch Regions . Pre-discovered Areas . | . . Known Exits Taken . | . . Unknown Exits Taken 1 | 1 . Scrap Searched . | . . Spaces Dug . | . . Terrain Destroyed . | . . Melee . | . . Projectile . | . . AOE . | . . Terrain Rammed . | . . Walls Destroyed . | . . Machines Disabled . | . . Actions | -11 -10 --------- Run | Yrd Mat Total 406 | 48 358 Wait 27 | . 27 Move 281 | 32 249 Hop 2 | . 2 Pick Up 17 | 7 10 Fast Attach . | . . Attach 7 | 5 2 Detach . | . . Swap 8 | . 8 Drop 7 | 2 5 Fire 56 | 2 54 Melee 1 | . 1 Ram . | . . Kick . | . . Crush . | . . Escape Stasis . | . . Rewire . | . . Trap . | . . Miscellaneous . | . . Route ------- -11/Scrapyard -10/Materials (discovered 3 exits: [*Mat] / Min x2) History --------- Turn | Location | Event 9 | -11/Scrapyard | Discovered new exit (range 16) 41 | -11/Scrapyard | Entered Materials 45 | -10/Materials | Identified exit to Mines 209 | -10/Materials | Discovered new exit (range 16) 288 | -10/Materials | Core integrity fell below 50% 307 | -10/Materials | Core integrity fell below 20% 310 | -10/Materials | Lost 4 parts (1p2n1w) 315 | -10/Materials | Destroyed by S-10 Pest with Light Assault Rifle Last Messages --------------- Awaiting botnet instructions. 00197_ Acquired Lgt. Ion Engine. 00209_ EXIT=FOUND 00211_ K-01 Serf collects debris. 00212_ Sneak attack on K-01 Serf. 00212_ Jacked K-01 Serf... >>find_chute No applicable chute records found in memory. 00215_ Acquired Assault Rifle. 00245_ Flight Unit destroyed. 00267_ Lgt. Ion Engine destroyed. 00272_ G-34 Mercenary destroyed. 00277_ Datajack destroyed. 00279_ Flight Unit destroyed. 00282_ R-06 Scavenger collects Aluminum Leg. 00298_ G-34 Mercenary destroyed. 00304_ R-06 Scavenger collects Aluminum Leg. 00313_ Structural Scanner destroyed. 00314_ G-34 Mercenary destroyed. 00315_ R-06 Scavenger collects Aluminum Leg. Map ----- +----------------------------------------------------+ | ???>????????????????????????????? | | ?????????????????????????????????? | | ########????????????????????????????????????? | | ## # """ ##????????????????????????????????????? | | + + "R" ##????????????????????????????????????? | | # # " " ##????????????????????????????????????? | | # # ##???????????? ???????????????????????? | | # # ##???????????? ??????????????????????? | | # # ! ##???????????? ??????????????????????? | | # # ##???????????# ?????????????????????? | | # + ##???????????##s##????????????????????? | | ## ########???????????## ##????????????????????? | | ####+########???????????## ##????????????????????? | | # ##????????###### ## ???????????????????? | | # ##????????###### ## ???????????????????? | | # # ???????? + ???????????????????? | | # + ??????????? rs# ???????????????????? | | # "" """ # ??????????? %=# ???????????????????? | | # "T """ ##???????????## s + ???????????????????? | | # "" """ ##???????????##ss # ???????????????????? | | # ##??????????### # ??????????????????? | | ####+##+################# *%###################### | | # ################ |% ##################### | | # ar | | # " < | | + @ k | | / # ####+############ ###+#############+??# | | / # # ############## ######## ??? | | # + """ ##????######## """ ##???????????? | | # # """ ##??????????## """ ##???????????? | | # # """ ##??????????## """ ##???????????? | | #### + ##??????????## ##???????????? | | ######## """ ##??????????## ##???????????? | | ?####### """ ##??????????##########???????????? | | ??????## """ ##??????????##########???????????? | | ??????## ##???????????????????????????????? | | ??????############???????????????????????????????? | | | | | | | | | | | | | | | | | | | | | | | | | | | +----------------------------------------------------+ Best States ------------- Heat Dissipation 25 Energy Generation 10 Energy Capacity 250 Matter Stores 300 Matter Capacity 300 Sight Range 16 Terrain Scan Range 16 Terrain Scan Density 10 Evasion (%) 62 Targeting Accuracy 5 Item Schematics ----------------- None Robot Schematics ------------------ None Fabricated ------------ Nothing Repaired ---------- Nothing Studied --------- None Alien Tech Used ----------------- None Achievements -------------- None Challenges ------------ None Game ------ Seed InsulationSupersonicSink Manual? 0 Play Time 00:10:16 Cumulative 19.4 hours Start 2026.04.13 @ 16:42:51 End 2026.04.13 @ 16:48:35 Sessions 1 Manual Loads 0 Difficulty Rogue Special Mode None Game No. 34 Rogue 31 Adventurer 3 Explorer 0 Win Type - Total 1 Types 1/0/0/0/0/0/0/0/0/0 Lore% 22 Gallery% 19 Achievement% 21 Wizard Run 0 Options --------- Layout 1 ASCII 0 Keyboard 0 Movement Numpad Keybinds 0 Fullscreen 2 Font 24/Proggy Map View 50x35 Zoom Use 0% Tactical HUD 1 Map Filters NONE Filters NONE Steam 1 RUN: c9992ff3-444e-4efe-92c7-a9ea592f8dfd